Workbook

Sheet Simulator
T1: 0 | AR1: =IF(G12=1,T9,IF(G12=2,V9,X9)) -> 3.675445365e-16 | AS1: =IF(G12=1,U9,IF(G12=2,W9,Y9)) -> -3
B2: Edit green cells. Enjoy! | G2: HELP | T2: x1 | U2: y1 | V2: x2 | W2: y2 | X2: x3 | Y2: y3 | Z2: radius | AB2: Δθ | AC2: θ1 | AD2: θ2 | AE2: θ3 | AH2: x1 | AI2: y1 | AJ2: x2 | AK2: y2 | AL2: x3 | AM2: y3 | AN2: x4 | AO2: y4 | AP2: x4 | AQ2: y4 | AR2: xjr | AS2: yjr
T3: =Z3*SIN(AC3/180*PI()) -> 0.8660254038 | U3: =Z3*COS(AC3/180*PI()) -> 0.5 | V3: =Z3*SIN(AD3/180*PI()) -> 1.225148455e-16 | W3: =Z3*COS(AD3/180*PI()) -> -1 | X3: =Z3*SIN(AE3/180*PI()) -> -0.8660254038 | Y3: =Z3*COS(AE3/180*PI()) -> 0.5 | Z3: 1 | AB3: =360*$E$16/D6 -> 0 | AC3: =E6+AB3 -> 60 | AD3: =F6+AB3 -> 180 | AE3: =G6+AB3 -> 300 | AG3: 270 | AH3: =$Z$3*SIN(AG3/180*PI()) -> -1 | AI3: =$Z$3*COS(AG3/180*PI()) -> -1.837722682e-16 | AJ3: =$Z$4*SIN(AG3/180*PI()) -> -2 | AK3: =$Z$4*COS(AG3/180*PI()) -> -3.675445365e-16 | AL3: =$Z$5*SIN(AG3/180*PI()) -> -3 | AM3: =$Z$5*COS(AG3/180*PI()) -> -5.513168047e-16 | AN3: =$Z$6*SIN($AG3/180*PI()) -> -4 | AO3: =$Z$6*COS($AG3/180*PI()) -> -7.350890729e-16 | AP3: =$Z$7*SIN($AG3/180*PI()) -> -5 | AQ3: =$Z$7*COS($AG3/180*PI()) -> -9.188613412e-16 | AR3: =$Z$9*SIN($AG3/180*PI())+$AR$1 -> -1.5 | AS3: =$Z$9*COS($AG3/180*PI())+$AS$1 -> -3
C4: planet set | E4: 1 | F4: 2 | G4: 3 | T4: =Z4*SIN(AC4/180*PI()) -> 1.732050808 | U4: =Z4*COS(AC4/180*PI()) -> 1 | V4: =Z4*SIN(AD4/180*PI()) -> 2.45029691e-16 | W4: =Z4*COS(AD4/180*PI()) -> -2 | X4: =Z4*SIN(AE4/180*PI()) -> -1.732050808 | Y4: =Z4*COS(AE4/180*PI()) -> 1 | Z4: 2 | AB4: =360*$E$16/D7 -> 0 | AC4: =E7+AB4 -> 60 | AD4: =F7+AB4 -> 180 | AE4: =G7+AB4 -> 300 | AG4: 280 | AH4: =$Z$3*SIN(AG4/180*PI()) -> -0.984807753 | AI4: =$Z$3*COS(AG4/180*PI()) -> 0.1736481777 | AJ4: =$Z$4*SIN(AG4/180*PI()) -> -1.969615506 | AK4: =$Z$4*COS(AG4/180*PI()) -> 0.3472963553 | AL4: =$Z$5*SIN(AG4/180*PI()) -> -2.954423259 | AM4: =$Z$5*COS(AG4/180*PI()) -> 0.520944533 | AN4: -3.939231012 | AO4: 0.6945927107 | AP4: -4.924038765 | AQ4: 0.8682408883 | AR4: =$Z$9*SIN($AG4/180*PI())+$AR$1 -> -1.47721163 | AS4: -2.739527733
C5: ring | D5: T [h] | E5: θt=0 [°] | T5: =Z5*SIN(AC5/180*PI()) -> 2.598076211 | U5: =Z5*COS(AC5/180*PI()) -> 1.5 | V5: 3.675445365e-16 | W5: -3 | X5: -2.598076211 | Y5: 1.5 | Z5: 3 | AB5: =360*$E$16/D8 -> 0 | AC5: =E8+AB5 -> 60 | AD5: 180 | AE5: 300 | AG5: 290 | AH5: -0.9396926208 | AI5: 0.3420201433 | AJ5: -1.879385242 | AK5: 0.6840402867 | AL5: -2.819077862 | AM5: 1.02606043 | AN5: -3.758770483 | AO5: 1.368080573 | AP5: -4.698463104 | AQ5: 1.710100717 | AR5: -1.409538931 | AS5: -2.486969785
C6: 1 | D6: 74.4 | E6: 60 | F6: 180 | G6: 300 | T6: =Z6*SIN(AC6/180*PI()) -> 3.464101615 | U6: =Z6*COS(AC6/180*PI()) -> 2 | V6: 4.90059382e-16 | W6: -4 | X6: -3.464101615 | Y6: 2 | Z6: 4 | AB6: =360*$E$16/D9 -> 0 | AC6: =E9+AB6 -> 60 | AD6: 180 | AE6: 300 | AG6: 300 | AH6: -0.8660254038 | AI6: 0.5 | AJ6: -1.732050808 | AK6: 1 | AL6: -2.598076211 | AM6: 1.5 | AN6: -3.464101615 | AO6: 2 | AP6: -4.330127019 | AQ6: 2.5 | AR6: -1.299038106 | AS6: -2.25
C7: 2 | D7: -61.2 | E7: 60 | F7: 180 | G7: 300 | T7: =Z7*SIN(AC7/180*PI()) -> 4.330127019 | U7: =Z7*COS(AC7/180*PI()) -> 2.5 | V7: 6.125742275e-16 | W7: -5 | X7: -4.330127019 | Y7: 2.5 | Z7: 5 | AB7: =360*$E$16/D10 -> 0 | AC7: =E10+AB7 -> 60 | AD7: 180 | AE7: 300 | AG7: 310 | AH7: -0.7660444431 | AI7: 0.6427876097 | AJ7: -1.532088886 | AK7: 1.285575219 | AL7: -2.298133329 | AM7: 1.928362829 | AN7: -3.064177772 | AO7: 2.571150439 | AP7: -3.830222216 | AQ7: 3.213938048 | AR7: -1.149066665 | AS7: -2.035818585
C8: 3 | D8: 100.8 | E8: 60 | F8: 180 | G8: 300 | AG8: 320 | AH8: -0.6427876097 | AI8: 0.7660444431 | AJ8: -1.285575219 | AK8: 1.532088886 | AL8: -1.928362829 | AM8: 2.298133329 | AN8: -2.571150439 | AO8: 3.064177772 | AP8: -3.213938048 | AQ8: 3.830222216 | AR8: -0.9641814145 | AS8: -1.850933335
C9: 4 | D9: -55.2 | E9: 60 | F9: 180 | G9: 300 | T9: =IF($G13=1,T3,IF($G13=2,T4,IF($G13=3,T5,IF($G13=4,T6,T7)))) -> 2.598076211 | U9: 1.5 | V9: 3.675445365e-16 | W9: -3 | X9: -2.598076211 | Y9: 1.5 | Z9: =1.5*E14 -> 1.5 | AG9: 330 | AH9: -0.5 | AI9: 0.8660254038 | AJ9: -1 | AK9: 1.732050808 | AL9: -1.5 | AM9: 2.598076211 | AN9: -2 | AO9: 3.464101615 | AP9: -2.5 | AQ9: 4.330127019 | AR9: -0.75 | AS9: -1.700961894
C10: 5 | D10: 66.24 | E10: 60 | F10: 180 | G10: 300 | Z10: 0.9 | AG10: 340 | AH10: -0.3420201433 | AI10: 0.9396926208 | AJ10: -0.6840402867 | AK10: 1.879385242 | AL10: -1.02606043 | AM10: 2.819077862 | AN10: -1.368080573 | AO10: 3.758770483 | AP10: -1.710100717 | AQ10: 4.698463104 | AR10: -0.513030215 | AS10: -1.590461069
Z11: 1 | AG11: 350 | AH11: -0.1736481777 | AI11: 0.984807753 | AJ11: -0.3472963553 | AK11: 1.969615506 | AL11: -0.520944533 | AM11: 2.954423259 | AN11: -0.6945927107 | AO11: 3.939231012 | AP11: -0.8682408883 | AQ11: 4.924038765 | AR11: -0.2604722665 | AS11: -1.52278837
B12: Jump ship | F12: planet set: | G12: 2 | Z12: 1.2 | AG12: 0 | AH12: 0 | AI12: 1 | AJ12: 0 | AK12: 2 | AL12: 0 | AM12: 3 | AN12: 0 | AO12: 4 | AP12: 0 | AQ12: 5 | AR12: 3.675445365e-16 | AS12: -1.5
B13: location | F13: ring: | G13: 3 | AG13: 10 | AH13: 0.1736481777 | AI13: 0.984807753 | AJ13: 0.3472963553 | AK13: 1.969615506 | AL13: 0.520944533 | AM13: 2.954423259 | AN13: 0.6945927107 | AO13: 3.939231012 | AP13: 0.8682408883 | AQ13: 4.924038765 | AR13: 0.2604722665 | AS13: -1.52278837
B14: space effect | E14: 1 | F14: jump distance | AG14: 20 | AH14: 0.3420201433 | AI14: 0.9396926208 | AJ14: 0.6840402867 | AK14: 1.879385242 | AL14: 1.02606043 | AM14: 2.819077862 | AN14: 1.368080573 | AO14: 3.758770483 | AP14: 1.710100717 | AQ14: 4.698463104 | AR14: 0.513030215 | AS14: -1.590461069
AG15: 30 | AH15: 0.5 | AI15: 0.8660254038 | AJ15: 1 | AK15: 1.732050808 | AL15: 1.5 | AM15: 2.598076211 | AN15: 2 | AO15: 3.464101615 | AP15: 2.5 | AQ15: 4.330127019 | AR15: 0.75 | AS15: -1.700961894
B16: time evolution | E16: 0 | F16: h | AG16: 40 | AH16: 0.6427876097 | AI16: 0.7660444431 | AJ16: 1.285575219 | AK16: 1.532088886 | AL16: 1.928362829 | AM16: 2.298133329 | AN16: 2.571150439 | AO16: 3.064177772 | AP16: 3.213938048 | AQ16: 3.830222216 | AR16: 0.9641814145 | AS16: -1.850933335
B17: (future or past) | AG17: 50 | AH17: 0.7660444431 | AI17: 0.6427876097 | AJ17: 1.532088886 | AK17: 1.285575219 | AL17: 2.298133329 | AM17: 1.928362829 | AN17: 3.064177772 | AO17: 2.571150439 | AP17: 3.830222216 | AQ17: 3.213938048 | AR17: 1.149066665 | AS17: -2.035818585
AG18: 60 | AH18: 0.8660254038 | AI18: 0.5 | AJ18: 1.732050808 | AK18: 1 | AL18: 2.598076211 | AM18: 1.5 | AN18: 3.464101615 | AO18: 2 | AP18: 4.330127019 | AQ18: 2.5 | AR18: 1.299038106 | AS18: -2.25
N19: Sirius Simulator by V1-Hyper | AG19: 70 | AH19: 0.9396926208 | AI19: 0.3420201433 | AJ19: 1.879385242 | AK19: 0.6840402867 | AL19: 2.819077862 | AM19: 1.02606043 | AN19: 3.758770483 | AO19: 1.368080573 | AP19: 4.698463104 | AQ19: 1.710100717 | AR19: 1.409538931 | AS19: -2.486969785
AG20: 80 | AH20: 0.984807753 | AI20: 0.1736481777 | AJ20: 1.969615506 | AK20: 0.3472963553 | AL20: 2.954423259 | AM20: 0.520944533 | AN20: 3.939231012 | AO20: 0.6945927107 | AP20: 4.924038765 | AQ20: 0.8682408883 | AR20: 1.47721163 | AS20: -2.739527733
AG21: 90 | AH21: 1 | AI21: 6.125742275e-17 | AJ21: 2 | AK21: 1.225148455e-16 | AL21: 3 | AM21: 1.837722682e-16 | AN21: 4 | AO21: 2.45029691e-16 | AP21: 5 | AQ21: 3.062871137e-16 | AR21: 1.5 | AS21: -3
AG22: 270 | AH22: =$Z$3*SIN(AG22/180*PI()) -> -1 | AI22: =$Z$3*COS(AG22/180*PI()) -> -1.837722682e-16 | AJ22: =$Z$4*SIN(AG22/180*PI()) -> -2 | AK22: =$Z$4*COS(AG22/180*PI()) -> -3.675445365e-16 | AL22: =$Z$5*SIN(AG22/180*PI()) -> -3 | AM22: =$Z$5*COS(AG22/180*PI()) -> -5.513168047e-16 | AN22: =$Z$6*SIN($AG22/180*PI()) -> -4 | AO22: =$Z$6*COS($AG22/180*PI()) -> -7.350890729e-16 | AP22: =$Z$7*SIN($AG22/180*PI()) -> -5 | AQ22: =$Z$7*COS($AG22/180*PI()) -> -9.188613412e-16 | AR22: -1.5 | AS22: -3
AG23: 260 | AH23: =$Z$3*SIN(AG23/180*PI()) -> -0.984807753 | AI23: =$Z$3*COS(AG23/180*PI()) -> -0.1736481777 | AJ23: -1.969615506 | AK23: -0.3472963553 | AL23: -2.954423259 | AM23: -0.520944533 | AN23: -3.939231012 | AO23: -0.6945927107 | AP23: -4.924038765 | AQ23: -0.8682408883 | AR23: -1.47721163 | AS23: -3.260472267
AG24: 250 | AH24: -0.9396926208 | AI24: -0.3420201433 | AJ24: -1.879385242 | AK24: -0.6840402867 | AL24: -2.819077862 | AM24: -1.02606043 | AN24: -3.758770483 | AO24: -1.368080573 | AP24: -4.698463104 | AQ24: -1.710100717 | AR24: -1.409538931 | AS24: -3.513030215
AG25: 240 | AH25: -0.8660254038 | AI25: -0.5 | AJ25: -1.732050808 | AK25: -1 | AL25: -2.598076211 | AM25: -1.5 | AN25: -3.464101615 | AO25: -2 | AP25: -4.330127019 | AQ25: -2.5 | AR25: -1.299038106 | AS25: -3.75
AG26: 230 | AH26: -0.7660444431 | AI26: -0.6427876097 | AJ26: -1.532088886 | AK26: -1.285575219 | AL26: -2.298133329 | AM26: -1.928362829 | AN26: -3.064177772 | AO26: -2.571150439 | AP26: -3.830222216 | AQ26: -3.213938048 | AR26: -1.149066665 | AS26: -3.964181415
AG27: 220 | AH27: -0.6427876097 | AI27: -0.7660444431 | AJ27: -1.285575219 | AK27: -1.532088886 | AL27: -1.928362829 | AM27: -2.298133329 | AN27: -2.571150439 | AO27: -3.064177772 | AP27: -3.213938048 | AQ27: -3.830222216 | AR27: -0.9641814145 | AS27: -4.149066665
AG28: 210 | AH28: -0.5 | AI28: -0.8660254038 | AJ28: -1 | AK28: -1.732050808 | AL28: -1.5 | AM28: -2.598076211 | AN28: -2 | AO28: -3.464101615 | AP28: -2.5 | AQ28: -4.330127019 | AR28: -0.75 | AS28: -4.299038106
AG29: 200 | AH29: -0.3420201433 | AI29: -0.9396926208 | AJ29: -0.6840402867 | AK29: -1.879385242 | AL29: -1.02606043 | AM29: -2.819077862 | AN29: -1.368080573 | AO29: -3.758770483 | AP29: -1.710100717 | AQ29: -4.698463104 | AR29: -0.513030215 | AS29: -4.409538931
AG30: 190 | AH30: -0.1736481777 | AI30: -0.984807753 | AJ30: -0.3472963553 | AK30: -1.969615506 | AL30: -0.520944533 | AM30: -2.954423259 | AN30: -0.6945927107 | AO30: -3.939231012 | AP30: -0.8682408883 | AQ30: -4.924038765 | AR30: -0.2604722665 | AS30: -4.47721163
AG31: 180 | AH31: 1.225148455e-16 | AI31: -1 | AJ31: 2.45029691e-16 | AK31: -2 | AL31: 3.675445365e-16 | AM31: -3 | AN31: 4.90059382e-16 | AO31: -4 | AP31: 6.125742275e-16 | AQ31: -5 | AR31: 5.513168047e-16 | AS31: -4.5
AG32: 170 | AH32: 0.1736481777 | AI32: -0.984807753 | AJ32: 0.3472963553 | AK32: -1.969615506 | AL32: 0.520944533 | AM32: -2.954423259 | AN32: 0.6945927107 | AO32: -3.939231012 | AP32: 0.8682408883 | AQ32: -4.924038765 | AR32: 0.2604722665 | AS32: -4.47721163
AG33: 160 | AH33: 0.3420201433 | AI33: -0.9396926208 | AJ33: 0.6840402867 | AK33: -1.879385242 | AL33: 1.02606043 | AM33: -2.819077862 | AN33: 1.368080573 | AO33: -3.758770483 | AP33: 1.710100717 | AQ33: -4.698463104 | AR33: 0.513030215 | AS33: -4.409538931
AG34: 150 | AH34: 0.5 | AI34: -0.8660254038 | AJ34: 1 | AK34: -1.732050808 | AL34: 1.5 | AM34: -2.598076211 | AN34: 2 | AO34: -3.464101615 | AP34: 2.5 | AQ34: -4.330127019 | AR34: 0.75 | AS34: -4.299038106
AG35: 140 | AH35: 0.6427876097 | AI35: -0.7660444431 | AJ35: 1.285575219 | AK35: -1.532088886 | AL35: 1.928362829 | AM35: -2.298133329 | AN35: 2.571150439 | AO35: -3.064177772 | AP35: 3.213938048 | AQ35: -3.830222216 | AR35: 0.9641814145 | AS35: -4.149066665
AG36: 130 | AH36: 0.7660444431 | AI36: -0.6427876097 | AJ36: 1.532088886 | AK36: -1.285575219 | AL36: 2.298133329 | AM36: -1.928362829 | AN36: 3.064177772 | AO36: -2.571150439 | AP36: 3.830222216 | AQ36: -3.213938048 | AR36: 1.149066665 | AS36: -3.964181415
AG37: 120 | AH37: 0.8660254038 | AI37: -0.5 | AJ37: 1.732050808 | AK37: -1 | AL37: 2.598076211 | AM37: -1.5 | AN37: 3.464101615 | AO37: -2 | AP37: 4.330127019 | AQ37: -2.5 | AR37: 1.299038106 | AS37: -3.75
AG38: 110 | AH38: 0.9396926208 | AI38: -0.3420201433 | AJ38: 1.879385242 | AK38: -0.6840402867 | AL38: 2.819077862 | AM38: -1.02606043 | AN38: 3.758770483 | AO38: -1.368080573 | AP38: 4.698463104 | AQ38: -1.710100717 | AR38: 1.409538931 | AS38: -3.513030215
AG39: 100 | AH39: 0.984807753 | AI39: -0.1736481777 | AJ39: 1.969615506 | AK39: -0.3472963553 | AL39: 2.954423259 | AM39: -0.520944533 | AN39: 3.939231012 | AO39: -0.6945927107 | AP39: 4.924038765 | AQ39: -0.8682408883 | AR39: 1.47721163 | AS39: -3.260472267
AG40: 90 | AH40: 1 | AI40: 6.125742275e-17 | AJ40: 2 | AK40: 1.225148455e-16 | AL40: 3 | AM40: 1.837722682e-16 | AN40: 4 | AO40: 2.45029691e-16 | AP40: 5 | AQ40: 3.062871137e-16 | AR40: 1.5 | AS40: -3

Sheet Help
B2: Add user data
B3: To save any data (your planet constellations, starmap screenshots, etc.)
B4: simply add a new (unprotected) spread sheet.
B6: How to get the correct angular planet positions from the Sirius starmap
B7: Accurate planet positions are essential for reliable route planning!
B8: This is how to get the best results:
B9: 1. Zoom out of the Sirius starmap until all rings are fully visible and make a screenshot.
B10: 2. Use an image editor to remove the perspective distortion (e.g. Photoshop, Paint Shop Pro).
C11: All starmap rings must be perfectly circular and concentric.
B12: 3. Insert the screenshot into PowerPoint or Excel and draw radial lines to each planet of interest
B13: 4. Determine the planet angles with trigonometry or below calculator:
C14: Type in the width and height of the radial line, drawn earlier.
C15: Make sure you select the correct quadrant the planet lies in.
C16: You have the angle needed for the Simulator :-)
C18: quadrant | D18: height | E18: width | F18: angle
B19: 1 | C19: 3 | D19: 3.63 | E19: 3.48 | F19: =ROUND(IF(C19=1, ATAN(E19/D19)/PI()*180,IF(C19=2,90+ATAN(D19/E19)/PI()*180,IF(C19=3,180+ATAN(E19/D19)/PI()*180,270+ATAN(D19/E19)/PI()*180))),2) & "°" -> 223.79°
B20: 2
B21: 3
B22: 4

Sheet Sheet1
